Cogmind - Beta 15 @@@ ROGUE MODE // 2025.07.20 @ 16:46:26 Player: amhumam Result: Destroyed by S9-R9T(R) with Subdweller Machine Gun Performance ------------- Evolutions (0) 0 Regions Visited (2) 400 Robots Destroyed (18) 90 Value Destroyed (516) 516 Prototype IDs (0) 0 Alien Tech Used (0) 0 Bonus (-5) -5 TOTAL SCORE: 1001 Bonus ------- Friendly Fire -5 Cogmind --------- Core Integrity 0/250 Matter 226/300 Energy 93/100 System Corruption 0% Temperature Cool (0) Movement Rolling (175) Ox5 Location -10/Subcaves Parts ------- > --- POWER (1) -------- Subdweller Power Source > --- PROPULSION (2) --- Compact Wheel > --- UTILITY (2) ------ Huge Storage Unit > --- WEAPON (2) ------- Subdweller Machine Gun Grenade Launcher > --- INVENTORY (25) --- Subdweller Power Source Subdweller Power Source Light Nuclear Core Wheel Subdweller Monowheel Subdweller Monowheel Improved Heat Sink Medium Storage Unit Makeshift Kinetic Plating Scrap Shield Subdweller Laser Subdweller Laser Subdweller Beam Cannon Shotgun Shotgun Shotgun Shotgun Battle Cannon Grenade Launcher Dirty Datajack (20) Ripper Makeshift Spear Peak State ------------ > --- POWER ------------ Subdweller Power Source > --- PROPULSION ------- Wheel Compact Wheel > --- UTILITY ---------- Huge Storage Unit Medium Armor Plating > --- WEAPON ----------- Subdweller Beam Cannon Makeshift Spear > --- INVENTORY -------- Subdweller Power Source Subdweller Power Source Light Nuclear Core Wheel Subdweller Monowheel Improved Heat Sink Medium Storage Unit Subdweller Laser Shotgun Shotgun Shotgun Shotgun Subdweller Machine Gun Battle Cannon Grenade Launcher Grenade Launcher [Rating: 16] Favorites ----------- Power Subdweller Power Source Engine Subdweller Power Source Propulsion Compact Wheel Treads Light Treads Wheel Compact Wheel Utility Medium Armor Plating Storage Huge Storage Unit Protection Medium Armor Plating Weapon Shotgun Energy Gun EM Pulse Gun Energy Cannon Subdweller Beam Cannon Ballistic Gun Shotgun Launcher Grenade Launcher Special Weapon Mining Laser Piercing Weapon Makeshift Spear Build | -11 -10 -10 ------- Run | Yrd Mat Sub Slots Evolved . | . . . Power . | . . . Propulsion . | . . . Utility . | . . . Weapon . | . . . Parts Attached 25 | 6 9 10 Power 2 | 1 . 1 Engine 2 | 1 . 1 Core . | . . . Reactor . | . . . Propulsion 5 | 2 2 1 Treads 2 | 2 . . Leg . | . . . Wheel 3 | . 2 1 Hover . | . . . Flight . | . . . Utility 7 | 1 4 2 Device . | . . . Storage 3 | 1 1 1 Processor . | . . . Hackware . | . . . Protection 4 | . 3 1 Artifact . | . . . Weapon 11 | 2 3 6 Energy Gun 2 | 2 . . Energy Cannon 1 | . . 1 Ballistic Gun 5 | . 2 3 Ballistic Cannon . | . . . Launcher 1 | . . 1 Special Weapon 1 | . 1 . Impact Weapon . | . . . Slashing Weapon . | . . . Piercing Weapon 1 | . . 1 Special Melee Weapon . | . . . Unidentified Prototypes . | . . . Parts Lost 5 | . 1 4 Power . | . . . Propulsion 2 | . . 2 Utility 3 | . 1 2 Weapon . | . . . Highest Loss Streak 2 | . 1 2 To Critical Strikes . | . . . Average Backups 13 | 1 8 15 Power 1 | . 1 2 Propulsion 2 | . 2 2 Utility 2 | . 2 2 Weapon 6 | . 3 8 Tool/Special . | . . . Unused Backups 18 | . 2 16 Power 4 | . 1 3 Propulsion 3 | . . 3 Utility 4 | . 1 3 Weapon 6 | . . 6 Tool/Special 1 | . . 1 Average Slot Usage (%) 98 | . 98 99 Engine 14 | . 14 14 Treads 1 | . 6 . Wheel 26 | . 21 27 Storage 14 | . 14 14 Protection 13 | . 12 13 Energy Cannon 2 | . . 2 Ballistic Gun 13 | . 22 9 Launcher 5 | . . 8 Piercing Weapon 5 | . . 7 Peak Build Rating 16 | 6 10 16 Average Rating 12 | 4 9 14 On Entrance 5 | . 6 10 Naked Turns . | . . . Heaviest Build 103 | 12 24 103 Greatest Support 40 | 40 40 26 Greatest Overweight (x) 3 | . 1 3 Average Overweight (x) 1 | . . 2 Largest Inventory Capacity 25 | 8 10 25 Average Capacity 18 | 7 9 22 Most Carried 23 | 4 10 23 Average Carried 13 | 1 8 15 Final Capacity 25 | 8 10 25 Final Carried 23 | 4 10 23 Class Distribution -------------------- 100% | Mutant Dominant Class ---------------- Mutant | -10/Materials Mutant | -10/Subcaves Resources | -11 -10 -10 ----------- Run | Yrd Mat Sub Matter Collected 768 | 234 231 303 Remotely . | . . . Salvage Created 522 | . 345 177 Parts 44 | . 28 16 Haulers Intercepted 1 | . 1 . Recyclers Shooed . | . . . Parts Field Recycled . | . . . Retrieved Matter . | . . . Parts Self-Destructed 18 | . . 18 Prevented . | . . . Kills | -11 -10 -10 ------- Run | Yrd Mat Sub Combat Hostiles Destroyed 15 | . 8 7 Melee 1 | . . 1 Guns 12 | . 8 4 Cannons 1 | . . 1 AOE 1 | . . 1 Classes Destroyed 6 | . 5 1 Worker 1 | . 1 . Tunneler 1 | . 1 . Hauler 1 | . 1 . Swarmer 3 | . 3 . Grunt 5 | . 5 . Subdweller 7 | . . 7 Best Kill Streak 4 | . 4 2 Combat Bots Only 2 | . 2 2 Max Kills in Single Turn 1 | . 1 1 Gunslinging . | . . . Exploded 1 | . . 1 Melee 1 | . . 1 Uniques/NPCs Destroyed . | . . . Combat | -11 -10 -10 -------- Run | Yrd Mat Sub Hostile Shots Fired 101 | . 54 47 Missed 32 | . 16 16 Hits 69 | . 38 31 Projectile 69 | . 38 31 Critical Strikes 1 | . . 1 Damage Taken 1200 | . 479 721 Core 267 | . 79 188 Absorbed by Shields . | . . . Core Remaining (%) 100 | 100 . . Volleys Fired 65 | . 41 24 Largest 2 | . 2 2 Hottest 110 | . 100 110 Shots Fired 113 | . 74 39 Gun 88 | . 70 18 Cannon 7 | . . 7 Launcher 13 | . . 13 Special 5 | . 4 1 Kinetic 88 | . 70 18 Thermal 12 | . 4 8 Explosive 13 | . . 13 Electromagnetic . | . . . Robot Hit Streak 13 | . 10 13 Robot Miss Streak 3 | . 3 2 Penetration Max . | . . . Secondary Targets . | . . . Shots Hit Robots 84 | . 52 32 Core Hits 44 | . 25 19 Critical Kills . | . . . Critical Parts Destroyed . | . . . Critical Strikes . | . . . Melee Attacks 42 | . . 42 Impact . | . . . Slashing . | . . . Piercing 42 | . . 42 Sneak Attacks . | . . . Combat Hostiles . | . . . Follow-up Attacks . | . . . Damage Inflicted 1866 | . 650 1216 Guns 934 | . 650 284 Cannons 58 | . . 58 Explosions 744 | . . 744 Melee 130 | . . 130 Ramming . | . . . Kinetic 934 | . 650 284 Thermal 58 | . . 58 Explosive 744 | . . 744 Electromagnetic . | . . . Impact . | . . . Slashing . | . . . Piercing 130 | . . 130 Highest Corruption . | . . . Average Corruption . | . . . Corruption Purged . | . . . Corruption Blocked . | . . . Overload Shots . | . . . Overflow Damage . | . . . Projectiles . | . . . Explosions . | . . . Melee . | . . . Knockbacks . | . . . Impact . | . . . Kinetic . | . . . Secondary . | . . . Self-Inflicted Damage 77 | . . 77 Shots 5 | . . 5 Rammed . | . . . Targets Rammed . | . . . Kicked . | . . . Crushed . | . . . Highest Temperature 111 | . 111 12 Average Temperature 19 | . 20 6 Received Heat Transfer 312 | . 192 120 Siege Activations . | . . . Martial Activations . | . . . Shielding Activations . | . . . Robots Disrupted . | . . . Combat Hostiles . | . . . Robots Corrupted . | . . . Combat Hostiles . | . . . Parts Fried . | . . . Impact Corruptions . | . . . Robots Melted . | . . . Combat Hostiles . | . . . Parts Melted . | . . . Heat Transferred 74 | . . 74 Parts Sabotaged . | . . . Parts Stolen . | . . . Parts Stripped . | . . . Power Chain Reactions . | . . . Alert | -11 -10 -10 ------- Run | Yrd Mat Sub Maximum Alert Level . | . . . Low Security (%) 100 | 100 100 . Level 1 . | . . . Level 2 . | . . . Level 3 . | . . . Level 4 . | . . . Level 5 . | . . . High Security . | . . . Max Security . | . . . Peak Influence 134 | . 134 . Initial . | . . . Average 66 | . 78 . Influence Increases 306 | . 306 . Destroy 0b10 Robot/C 160 | . 160 . Destroy 0b10 Robot/NC 15 | . 15 . Destroy Leader 42 | . 42 . Successful Hack 29 | . 29 . Select Force Hacks 30 | . 30 . Lose Combat Pursuer 30 | . 30 . Influence Decreases 306 | . 229 77 Entered New Map 37 | . . 37 Time Decay 259 | . 219 40 Lost Part 10 | . 10 . Squads Dispatched 2 | . 2 . Investigation 1 | . 1 . Extermination . | . . . Reinforcement 1 | . 1 . Assault . | . . . Garrison . | . . . Intercept . | . . . Searches Triggered . | . . . Construction Impeded . | . . . Haulers Reinforced . | . . . Active Scanning Responses . | . . . Cargo Convoy Interrupts . | . . . Stealth | -11 -10 -10 --------- Run | Yrd Mat Sub Distress Signals . | . . . Communications Jammed . | . . . Distress Signals . | . . . Times Spotted 23 | . 14 9 Peak Tracking Total 4 | . 4 2 Tactical Retreats 2 | . 2 . Traps | -11 -10 -10 ------- Run | Yrd Mat Sub Traps Triggered 1 | . 1 . Indirectly . | . . . Trap Hack Attempts . | . . . Triggered . | . . . Disarmed . | . . . Reprogrammed . | . . . Reused . | . . . Traps Extracted . | . . . Installed . | . . . Triggered . | . . . Machines | -11 -10 -10 ---------- Run | Yrd Mat Sub Machines Disabled . | . . . Max in Single Turn . | . . . Machines Repaired . | . . . Machines Dismantled . | . . . Machines Sabotaged . | . . . Overloaded Fab Kills . | . . . Hacking | -11 -10 -10 --------- Run | Yrd Mat Sub Machines Accessed 6 | . 5 1 Terminals 4 | . 4 . Fabricators . | . . . Repair Stations . | . . . Recycling Units 1 | . 1 . Scanalyzers . | . . . Garrison Access . | . . . Total Hacks 15 | . 13 2 Successful 8 | . 6 2 Failed 7 | . 7 . Catastrophic . | . . . Database Lockouts . | . . . Manual 13 | . 13 . Terminals 11 | . 11 . Fabricators . | . . . Repair Stations . | . . . Recycling Units 2 | . 2 . Scanalyzers . | . . . Garrison Access . | . . . Terminal Hacks 5 | . 3 2 Record 2 | . . 2 Robot Analysis 2 | . 2 . Recall Investigation 1 | . 1 . Fabricator Hacks . | . . . Repair Station Hacks . | . . . Recycling Unit Hacks . | . . . Scanalyzer . | . . . Garrison Access Hacks . | . . . Unauthorized Hacks 3 | . 3 . Terminals 2 | . 2 . Botnet 2 | . 2 . Fabricators . | . . . Repair Stations . | . . . Recycling Units 1 | . 1 . Tunnel 1 | . 1 . Scanalyzers . | . . . Garrison Access . | . . . Data Cores Recovered . | . . . Used . | . . . Hacking Detections 5 | . 5 . Full Trace Events . | . . . Feedback Events . | . . . Feedback Blocked . | . . . Robot Schematics Acquired . | . . . Robots Built . | . . . Authchips . | . . . Time . | . . . Total Robot Build Rating . | . . . Part Schematics Acquired . | . . . Parts Built . | . . . Authchips . | . . . Time . | . . . Total Part Build Rating . | . . . Parts Repaired . | . . . Time . | . . . Parts Recycled . | . . . Recycled Matter . | . . . Retrieved Matter . | . . . Retrieved Components . | . . . Parts Scanalyzed . | . . . Part Schematics Acquired . | . . . Parts Damaged . | . . . Bothacking | -11 -10 -10 ------------ Run | Yrd Mat Sub Used RIF Installer . | . . . Robots Hacked . | . . . Non-combat . | . . . Combat . | . . . Robot Hacks Applied . | . . . Relay Couplers Released . | . . . Fabnet Peak Effective % . | . . . Robots Rewired . | . . . Allies Hacked . | . . . Hacks Repelled . | . . . Allies | -11 -10 -10 -------- Run | Yrd Mat Sub Total Allies . | . . . Largest Group . | . . . Highest-Rated Group . | . . . Highest-Rated Ally . | . . . Total Orders . | . . . Ally Attacks . | . . . Total Damage . | . . . Kills . | . . . Allies Corrupted . | . . . Allies Melted . | . . . Intel | -11 -10 -10 ------- Run | Yrd Mat Sub Active Infowar (turns) . | . . . Robot Analysis Total 2 | . 2 . Derelict Logs Recovered . | . . . Drone Launches . | . . . Drone Recoveries . | . . . Exploration | -11 -10 -10 ------------- Run | Yrd Mat Sub Turns Passed 2086 | 94 541 1451 Spaces Moved 1395 | 55 370 970 Core 5 | 5 . . Treads 105 | 50 55 . Legs . | . . . Wheels 1285 | . 315 970 Hover . | . . . Flight . | . . . Fastest Speed 50 | 50 90 90 Average Speed 122 | 150 100 129 Slowest Speed 160 | 160 160 135 Overloaded Moves . | . . . Propulsion Burnouts . | . . . Robots Hopped . | . . . Potential Cave-ins . | . . . Cave-ins Triggered . | . . . Exploration Rate (%) 42 | 4 63 60 Regions Visited 2 Branch Regions 1 Pre-discovered Areas 3 | . 1 2 Known Exits Taken . | . . . Unknown Exits Taken 2 | 1 1 . Scrap Searched 5 | . . 5 Spaces Dug 4 | . . 4 Terrain Destroyed 50 | . . 50 Melee . | . . . Projectile 5 | . . 5 AOE 45 | . . 45 Terrain Rammed . | . . . Walls Destroyed . | . . . Machines Disabled . | . . . Actions | -11 -10 -10 --------- Run | Yrd Mat Sub Total 1609 | 64 467 1078 Wait 36 | . 26 10 Move 1393 | 54 369 970 Hop . | . . . Pick Up 31 | 4 12 15 Fast Attach 10 | 6 4 . Attach 5 | . 3 2 Detach . | . . . Swap 15 | . 2 13 Drop 12 | . 10 2 Fire 65 | . 41 24 Melee 42 | . . 42 Ram . | . . . Kick . | . . . Crush . | . . . Escape Stasis . | . . . Rewire . | . . . Trap . | . . . Miscellaneous . | . . . Route ------- -11/Scrapyard -10/Materials (discovered 3 exits: [*Mat x2] / *Sub) -10/Subcaves (discovered 2 exits: [*Mat x2]) History --------- Turn | Location | Event 5 | -11/Scrapyard | Discovered new exit (range 15) 95 | -11/Scrapyard | Entered Materials 288 | -10/Materials | Discovered new exit (range 16) 322 | -10/Materials | Build established: Mutant 491 | -10/Materials | Discovered new exit (range 6) 631 | -10/Materials | Discovered new exit (range 3) 636 | -10/Materials | Entered Subcaves 800 | -10/Subcaves | Shifting Twisted Machinery released Flamer 802 | -10/Subcaves | Shifting Twisted Machinery released Mak. Spear 858 | -10/Subcaves | Disturbed a concealed Subdweller 939 | -10/Subcaves | Learned location of Zion (-6) 939 | -10/Subcaves | Met a Zionite searching for "candidates" 966 | -10/Subcaves | Discovered new exit (range 4) 1118 | -10/Subcaves | Shifting Twisted Machinery released Spk. Treads 1120 | -10/Subcaves | Shifting Twisted Machinery released Sub. Machine Gun 1167 | -10/Subcaves | A swath of the cavern ceiling suddenly collapsed 1272 | -10/Subcaves | Visited Clippyterm 1276 | -10/Subcaves | Learned location of Section 7 (-2) 1463 | -10/Subcaves | A swath of the cavern ceiling suddenly collapsed 1758 | -10/Subcaves | Disturbed a concealed Subdweller 2038 | -10/Subcaves | Discovered new exit (range 11) 2069 | -10/Subcaves | Core integrity fell below 50% 2078 | -10/Subcaves | Core integrity fell below 20% 2087 | -10/Subcaves | Destroyed by S9-R9T(R) with Subdweller Machine Gun Last Messages --------------- 01797_ Found 40 Matter. 01798_ Acquired 23 matter. 01799_ Searching scrap... 01799_ Found Sub. Laser. 01799_ Found 37 Matter. 01800_ Searching scrap... 01800_ Found Mak. Kinetic Plating. 01800_ Found Ripper. 01800_ Found 68 Matter. 01803_ Acquired Mak. Kinetic Plating. 01805_ Acquired Ripper. 02038_ EXIT=FOUND 02058_ Sub. Power Source shoots sparks and powers down. 02075_ Sub. Beam Cannon shoots sparks and powers down. 02078_ Med. Armor Plating destroyed. 02085_ Wheel destroyed. 02085_ 6J-K7K(R) destroyed. 02087_ The unstable cave ceiling collapses. Map ----- +----------------------------------------------------+ | ?????????????????????????????????????????## | | ?????????????????????????????????????????## | | ?????????????????????????????????????????# | | ?????????????????????????????????????????# | | ?????????????????????????????????????????## | | ?????????????????????????????????????????## | | ?????????????????????????????????????????# | | ?????????????????????????????????????????# | | ?????????????????????????????????????????## ## | | ??????????????????????????????????????????## #### | | ???????????????????????????????????????????# #?? | | ???????????????????????????????????????????# #?? | | ??????????????????????????????????????????## ##?? | | ??????????????????????????????????????????# ##?? | | ??????????????????????????????????????????# ##? | | ?????????????????????????????##???????????# ## | | ?????????????????????######## ###????????## | | ????????????????????## # # "########## | | ???????????????????## ## | | ??????????????????## ### | | ?????????????????## ##### ##### | | ?????????????????# R&# ####????###### | | ?????????????????# ???????????## | | ?????????????????# #???????????????? | | ??????????????????????# # #????????????????? | | ??????????????????????# @ #????????????????? | | ?????????????????????## #????????????????? | | ?????????????????????# ##????????????????? | | ?????????????????????## ####?????????????????? | | ??????????????????????### #????????????????????? | | ????????????????????????# ##??????#####????????? | | ????????????????????????# ##????? #????????? | | ????????????????????????# ##?### < #????????? | | ???????????????????????## ## #????????? | | ??????????????????? ### #????????? | | ???????????????? ## #????????? | | ???????????????? ### ##????????? | | ????????????????# ## #### #####?????????? | | ????????????????# ???# ### ##????????????? | | ?????????????????????# ## #????????????? | | ?????????????????????## #????????????? | | ??????????????????????## ### ##????????????? | | ???????????????????????#### ??## #?????????????? | | ???????????????????????????#???# ##????????????? | | ???????????????????????????????# #????????????? | | ??????????????????????????###### #????????????? | | ??????????????????????????# ## ##????????????? | | ??????????????????????????# ##?????????????? | | ?????????????????????????## #??????????????? | | ?????????????????????????# # ## #??????????????? | +----------------------------------------------------+ Best States ------------- Heat Dissipation 25 Energy Generation 15 Energy Capacity 200 Matter Stores 300 Matter Capacity 300 Sight Range 16 Terrain Scan Density 10 Armor Coverage 225 Evasion (%) 42 Recoil Reduction 2 Item Schematics ----------------- None Robot Schematics ------------------ None Fabricated ------------ Nothing Repaired ---------- Nothing Alien Tech Used ----------------- None Achievements -------------- None Challenges ------------ None Game ------ Seed TimingNodeAutogun Manual? 0 Play Time 00:22:41 Cumulative 257.2 hours Start 2025.07.20 @ 16:25:38 End 2025.07.20 @ 16:46:26 Sessions 1 Manual Loads 0 Difficulty Rogue Special Mode None Game No. 228 Rogue 228 Adventurer 0 Explorer 0 Win Type - Total 1 Types 1/0/0/0/0/0/0/0/0/0 Lore% 77 Gallery% 63 Achievement% 55 Wizard Run 0 Options --------- Layout 1 ASCII 0 Keyboard 0 Movement Arrows Keybinds 0 Fullscreen 1 Font 24/Smallcaps Map View 50x35 Zoom Use 0% Tactical HUD 1 Map Filters NONE Filters NONE Steam 1 RUN: b780db4a-094d-475e-aa35-e0c9ee6e8ae4